Cogmind - Beta 11 @@@ ROGUE MODE // 2022.03.18 @ 22:03:52 Player: RNGesus Result: Destroyed by Y-45 Defender with Heavy Assault Rifle Performance ------------- Evolutions (1) 500 Regions Visited (4) 800 Robots Destroyed (95) 475 Value Destroyed (2247) 2247 Prototype IDs (8) 160 Alien Tech Used (0) 0 Bonus (363) 363 TOTAL SCORE: 4545 Bonus ------- High Alert Combat Kills 363 Cogmind --------- Core Integrity 0/400 Matter 248/300 Energy 250/250 System Corruption 2% Temperature Cool (9) Movement Walking (190) Ox1 Location -9/Storage Parts ------- > --- POWER (1) -------- Ion Engine > --- PROPULSION (3) --- Improved Aluminum Leg Improved Aluminum Leg > --- UTILITY (3) ------ Large Storage Unit Medium Armor Plating > --- WEAPON (2) ------- Improved Assault Rifle Improved Assault Rifle > --- INVENTORY (15) --- Wheel Improved Flight Unit Improved Flight Unit Improved Flight Unit Gravity Neutralizer Experimental Sensor Array Hacking Suite Hacking Suite Improved Assault Rifle Mini Grenade Launcher Heavy Hammer Peak State ------------ > --- POWER ------------ Fission Core > --- PROPULSION ------- Improved Aluminum Leg Improved Aluminum Leg Improved Aluminum Leg > --- UTILITY ---------- Medium Storage Unit Gravity Neutralizer Light Armor Plating > --- WEAPON ----------- Improved Assault Rifle Improved Assault Rifle > --- INVENTORY -------- Improved Flight Unit Improved Flight Unit Improved Flight Unit Improved Sensor Array Experimental Sensor Array Hacking Suite Hacking Suite Improved Assault Rifle Mini Grenade Launcher Heavy Hammer [Rating: 28] Favorites ----------- Power Fission Core Engine Ion Engine Power Core Fission Core Propulsion Improved Aluminum Leg Treads Light Treads Leg Improved Aluminum Leg Wheel Wheel Utility Improved Heat Sink Device Improved Heat Sink Storage Medium Storage Unit Protection Light Armor Plating Weapon Improved Assault Rifle Energy Gun Field Laser Ballistic Gun Improved Assault Rifle Launcher Mini Grenade Launcher Impact Weapon Heavy Hammer Build | -11 -10 -10 -9 -9 ------- Run | Scr Mat Min Mat Sto Slots Evolved 2 | . . . 2 . Power . | . . . . . Propulsion 1 | . . . 1 . Utility 1 | . . . 1 . Weapon . | . . . . . Parts Attached 80 | 6 2 5 44 23 Power 6 | 1 . 1 3 1 Engine 3 | 1 . 1 . 1 Core 3 | . . . 3 . Reactor . | . . . . . Propulsion 21 | 2 2 2 8 7 Treads 6 | 2 2 . 2 . Leg 11 | . . . 6 5 Wheel 4 | . . 2 . 2 Hover . | . . . . . Flight . | . . . . . Utility 18 | 1 . . 11 6 Device 5 | . . . 3 2 Storage 7 | 1 . . 3 3 Processor . | . . . . . Hackware . | . . . . . Protection 6 | . . . 5 1 Artifact . | . . . . . Weapon 35 | 2 . 2 22 9 Energy Gun 15 | . . 1 14 . Energy Cannon . | . . . . . Ballistic Gun 10 | 2 . . 3 5 Ballistic Cannon . | . . . . . Launcher 9 | . . 1 5 3 Special Weapon . | . . . . . Impact Weapon 1 | . . . . 1 Slashing Weapon . | . . . . . Piercing Weapon . | . . . . . Special Melee Weapon . | . . . . . Unidentified Prototypes 5 | . . . 4 1 Parts Lost 19 | . . 6 9 4 Power 2 | . . 1 . 1 Propulsion 9 | . . 2 5 2 Utility 3 | . . . 2 1 Weapon 5 | . . 3 2 . Highest Loss Streak 5 | . . 5 4 1 To Critical Strikes . | . . . . . Average Slot Usage (%) 87 | . 85 71 93 88 Engine 5 | . 14 13 3 2 Core 5 | . . . 7 8 Treads 7 | . 28 12 6 . Leg 14 | . . . 16 24 Wheel 7 | . . 15 8 4 Device 6 | . . . 10 8 Storage 11 | . 14 14 10 11 Protection 5 | . . . 8 8 Energy Gun 6 | . . 1 18 . Ballistic Gun 13 | . 28 10 2 20 Launcher 1 | . . 3 . . Naked Turns . | . . . . . Heaviest Build 38 | 14 14 14 34 38 Greatest Support 40 | 40 40 40 33 39 Greatest Overweight (x) 4 | 4 . 1 2 2 Average Overweight (x) . | 2 . . . . Largest Inventory Capacity 30 | 8 8 8 10 30 Average Capacity 9 | 7 8 8 9 10 Most Carried 11 | 6 8 8 10 11 Average Carried 8 | 3 7 7 9 10 Final Capacity 15 | 8 8 8 10 15 Final Carried 11 | 6 8 8 10 11 Class Distribution -------------------- 62% | Mutant 37% | Scavenger-Mutant Dominant Class ---------------- Mutant | -10/Materials Mutant | -10/Mines Scavenger-Mutant | -9/Materials Scavenger-Mutant | -9/Storage Resources | -11 -10 -10 -9 -9 ----------- Run | Scr Mat Min Mat Sto Matter Collected 1850 | 210 27 294 560 759 Remotely . | . . . . . Salvage Created 3157 | . 51 187 1920 999 Parts 209 | . 9 13 119 68 Haulers Intercepted 9 | . . . 5 4 Recyclers Shooed 5 | . . . 2 3 Parts Field Recycled . | . . . . . Retrieved Matter . | . . . . . Parts Self-Destructed . | . . . . . Prevented . | . . . . . Kills | -11 -10 -10 -9 -9 ------- Run | Scr Mat Min Mat Sto Combat Hostiles Destroyed 70 | . 3 11 38 18 Guns 55 | . 3 7 30 15 AOE 13 | . . 4 6 3 Classes Destroyed 14 | . 2 3 8 1 Worker 4 | . . . 1 3 Builder 2 | . . . . 2 Tunneler 1 | . . . 1 . Hauler 9 | . . . 5 4 Recycler 3 | . . . 1 2 Mechanic 1 | . . . 1 . Operator 4 | . 1 . 3 . Watcher 6 | . . . 5 1 Swarmer 20 | . 3 3 7 7 Grunt 27 | . . 2 19 6 Brawler 2 | . . . 2 . Sentry 15 | . . . 10 5 Demolisher 1 | . . 1 . . Assembled 5 | . . 5 . . Best Kill Streak 8 | . 3 3 8 4 Combat Bots Only 5 | . 3 3 5 4 Max Kills in Single Turn 4 | . 1 1 4 2 Gunslinging 1 | . . . 1 1 Exploded 3 | . . 1 3 1 Melee . | . . . . . Uniques/NPCs Destroyed . | . . . . . Combat | -11 -10 -10 -9 -9 -------- Run | Scr Mat Min Mat Sto Damage Taken 3196 | . 129 782 1498 787 Core 645 | . 42 199 269 135 Absorbed by Shields . | . . . . . Core Remaining (%) 51 | 100 . 3 . . Volleys Fired 252 | . 14 31 120 87 Largest 2 | . 2 2 2 2 Hottest 126 | . 40 60 126 46 Shots Fired 454 | . 28 48 215 163 Gun 432 | . 28 45 206 153 Cannon . | . . . . . Launcher 22 | . . 3 9 10 Special . | . . . . . Kinetic 234 | . 28 37 16 153 Thermal 190 | . . . 190 . Explosive 22 | . . 3 9 10 Electromagnetic 8 | . . 8 . . Robot Hit Streak 20 | . 5 12 13 20 Robot Miss Streak 5 | . 3 3 5 2 Penetration Max . | . . . . . Secondary Targets 6 | . . 1 4 1 Max Gunslinging Chain 1 | . . 1 1 1 Shots Hit Robots 283 | . 17 32 125 109 Core Hits 137 | . 5 17 72 43 Critical Kills . | . . . . . Critical Parts Destroyed 1 | . . . . 1 Critical Strikes 15 | . . 1 12 2 Burn 12 | . . . 12 . Destroy 2 | . . . . 2 Corrupt 1 | . . 1 . . Melee Attacks 4 | . . . . 4 Impact 4 | . . . . 4 Slashing . | . . . . . Piercing . | . . . . . Sneak Attacks 1 | . . . . 1 Combat Hostiles . | . . . . . Follow-up Attacks . | . . . . . Damage Inflicted 5803 | . 211 635 2803 2154 Guns 4360 | . 211 368 2134 1647 Cannons . | . . . . . Explosions 1357 | . . 267 669 421 Melee 86 | . . . . 86 Ramming . | . . . . . Kinetic 2310 | . 211 314 138 1647 Thermal 2221 | . . 119 2102 . Explosive 1132 | . . 148 563 421 Electromagnetic 54 | . . 54 . . Impact 86 | . . . . 86 Slashing . | . . . . . Piercing . | . . . . . Highest Corruption 2 | . . . 1 2 Average Corruption 1 | . . . 1 1 Corruption Purged . | . . . . . Corruption Blocked . | . . . . . Effects 30 | . . . 11 19 Message Errors 4 | . . . 1 3 Matter Fused 8 | . . . 5 3 Heat Flow Errors 7 | . . . 3 4 Energy Discharges 2 | . . . . 2 Parts Rejected 1 | . . . 1 . Data Loss (minor) 6 | . . . . 6 Data Loss (major) 1 | . . . 1 . Weapon Failures 1 | . . . . 1 Overload Shots . | . . . . . Overflow Damage 165 | . . 42 46 77 Projectiles . | . . . . . Explosions 119 | . . 42 46 31 Melee 46 | . . . . 46 Knockbacks . | . . . . . Impact . | . . . . . Kinetic . | . . . . . Secondary . | . . . . . Self-Inflicted Damage 220 | . . . 199 21 Shots 6 | . . . 5 1 Rammed . | . . . . . Targets Rammed . | . . . . . Kicked . | . . . . . Crushed . | . . . . . Highest Temperature 457 | . . 2 457 240 Average Temperature 85 | . . 1 87 72 Received Heat Transfer 846 | . 48 78 492 228 Effects 5 | . . . 5 . Shutdowns 1 | . . . 1 . Interference 4 | . . . 4 . Siege Activations . | . . . . . Robots Corrupted . | . . . . . Combat Hostiles . | . . . . . Parts Fried 1 | . . . . 1 Impact Corruptions 2 | . . . . 2 Robots Melted 2 | . . . 2 . Combat Hostiles 2 | . . . 2 . Parts Melted 17 | . . . 17 . Heat Transferred 5381 | . . 50 5331 . Parts Sabotaged . | . . . . . Parts Stolen . | . . . . . Parts Stripped . | . . . . . Power Chain Reactions 1 | . . 1 . . Missiles Intercepted . | . . . . . Alert | -11 -10 -10 -9 -9 ------- Run | Scr Mat Min Mat Sto Peak Influence 1057 | . 100 172 1057 621 Initial 414 | . . 39 20 414 Average 358 | . 40 79 560 403 Maximum Alert Level 3 | . . . 3 2 Low Security (%) 36 | 100 100 100 20 . Level 1 23 | . . . 17 50 Level 2 24 | . . . 19 50 Level 3 15 | . . . 43 . Level 4 . | . . . . . Level 5 . | . . . . . High Security . | . . . . . Max Security . | . . . . . Squads Dispatched 8 | . 1 . 5 2 Investigation 2 | . . . 1 1 Extermination . | . . . . . Reinforcement 4 | . 1 . 3 . Assault 1 | . . . 1 . Garrison 1 | . . . . 1 Intercept . | . . . . . Searches Triggered . | . . . . . Construction Impeded . | . . . . . Haulers Reinforced . | . . . . . Active Scanning Responses . | . . . . . Cargo Convoy Interrupts . | . . . . . Stealth | -11 -10 -10 -9 -9 --------- Run | Scr Mat Min Mat Sto Distress Signals 9 | . 2 . 2 5 Communications Jammed . | . . . . . Distress Signals . | . . . . . Times Spotted 116 | . 16 16 59 25 Peak Tracking Total 6 | . 4 3 6 5 Tactical Retreats 3 | . . 1 1 1 Traps | -11 -10 -10 -9 -9 ------- Run | Scr Mat Min Mat Sto Traps Triggered 6 | . . . 2 4 Indirectly . | . . . . . Trap Hack Attempts . | . . . . . Triggered . | . . . . . Disarmed . | . . . . . Reprogrammed . | . . . . . Reused . | . . . . . Traps Extracted . | . . . . . Installed . | . . . . . Triggered . | . . . . . Machines | -11 -10 -10 -9 -9 ---------- Run | Scr Mat Min Mat Sto Machines Disabled 6 | . 1 . 1 4 Max in Single Turn 1 | . 1 . 1 1 Machines Sabotaged . | . . . . . Garrisons Compromised . | . . . . . Overloaded Fab Kills . | . . . . . Hacking | -11 -10 -10 -9 -9 --------- Run | Scr Mat Min Mat Sto Machines Accessed 19 | . 1 . 11 7 Terminals 15 | . 1 . 8 6 Fabricators . | . . . . . Repair Stations 1 | . . . 1 . Recycling Units . | . . . . . Scanalyzers 2 | . . . 2 . Garrison Access 1 | . . . . 1 Total Hacks 51 | . 2 . 35 14 Successful 27 | . 1 . 19 7 Failed 24 | . 1 . 16 7 Catastrophic 9 | . . . 7 2 Database Lockouts . | . . . . . Manual 27 | . 2 . 16 9 Terminals 33 | . 2 . 19 12 Fabricators . | . . . . . Repair Stations 2 | . . . 2 . Recycling Units . | . . . . . Scanalyzers 14 | . . . 14 . Garrison Access 2 | . . . . 2 Terminal Hacks 10 | . . . 4 6 Prototype ID Bank 1 | . . . 1 . Open Door 3 | . . . . 3 Branch Access Points 1 | . . . 1 . Terminal Index 2 | . . . 1 1 Unreport Threat 1 | . . . . 1 Recall Investigation 1 | . . . . 1 Hauler Manifests 1 | . . . 1 . Fabricator Hacks . | . . . . . Repair Station Hacks 1 | . . . 1 . Scan Component 1 | . . . 1 . Recycling Unit Hacks . | . . . . . Scanalyzer 12 | . . . 12 . Insert Component 5 | . . . 5 . Analyze 7 | . . . 7 . Garrison Access Hacks . | . . . . . Unauthorized Hacks 4 | . 1 . 2 1 Terminals 4 | . 1 . 2 1 Botnet 2 | . . . 1 1 Operators 2 | . 1 . 1 . Fabricators . | . . . . . Repair Stations . | . . . . . Recycling Units . | . . . . . Scanalyzers . | . . . . . Garrison Access . | . . . . . Data Cores Recovered . | . . . . . Used . | . . . . . Hacking Detections 16 | . 1 . 10 5 Full Trace Events 1 | . . . . 1 Feedback Events . | . . . . . Feedback Blocked . | . . . . . Robot Schematics Acquired . | . . . . . Robots Built . | . . . . . Authchips . | . . . . . Time . | . . . . . Total Robot Build Rating . | . . . . . Part Schematics Acquired 4 | . . . 4 . Parts Built . | . . . . . Authchips . | . . . . . Time . | . . . . . Total Part Build Rating . | . . . . . Parts Repaired . | . . . . . Time . | . . . . . Parts Recycled . | . . . . . Recycled Matter . | . . . . . Retrieved Matter . | . . . . . Retrieved Components . | . . . . . Parts Scanalyzed 4 | . . . 4 . Part Schematics Acquired 4 | . . . 4 . Parts Damaged 1 | . . . 1 . Bothacking | -11 -10 -10 -9 -9 ------------ Run | Scr Mat Min Mat Sto Used RIF Installer . | . . . . . Robots Hacked . | . . . . . Non-combat . | . . . . . Combat . | . . . . . Robot Hacks Applied . | . . . . . Relay Couplers Released . | . . . . . Fabnet Peak Effective % . | . . . . . Robots Rewired . | . . . . . Allies Hacked . | . . . . . Hacks Repelled . | . . . . . Allies | -11 -10 -10 -9 -9 -------- Run | Scr Mat Min Mat Sto Total Allies 3 | . . 3 . . Largest Group 3 | . . 3 . . Highest-Rated Group 40 | . . 40 . . Highest-Rated Ally 16 | . . 16 . . Total Orders . | . . . . . Ally Attacks 36 | . . 36 . . Total Damage 331 | . . 331 . . Kills 6 | . . 6 . . Allies Corrupted . | . . . . . Allies Melted . | . . . . . Intel | -11 -10 -10 -9 -9 ------- Run | Scr Mat Min Mat Sto Robot Analysis Total . | . . . . . Derelict Logs Recovered 2 | . . 2 . . Drone Launches . | . . . . . Drone Recoveries . | . . . . . Exploration | -11 -10 -10 -9 -9 ------------- Run | Scr Mat Min Mat Sto Turns Passed 4666 | 90 527 750 1667 1632 Spaces Moved 2793 | 40 299 584 986 884 Core 41 | 28 . 1 12 . Treads 454 | 12 299 143 . . Legs 1251 | . . . 511 740 Wheels 1047 | . . 440 463 144 Hover . | . . . . . Flight . | . . . . . Fastest Speed 50 | 50 160 80 50 90 Average Speed 130 | 194 160 99 120 148 Slowest Speed 260 | 250 160 160 260 190 Overloaded Moves . | . . . . . Propulsion Burnouts . | . . . . . Robots Hopped . | . . . . . Cave-ins Triggered . | . . . . . Exploration Rate (%) 60 | 5 56 77 90 72 Regions Visited 4 Branch Regions 2 Pre-discovered Areas 1 | . . 1 . . Known Exits Taken 1 | . . . 1 . Unknown Exits Taken 3 | 1 1 1 . . Scrap Searched 1 | . . 1 . . Spaces Dug 65 | . . . 48 17 Terrain Destroyed 188 | . . 22 102 64 Melee . | . . . . . Projectile . | . . . . . AOE 188 | . . 22 102 64 Terrain Rammed . | . . . . . Walls Destroyed . | . . . . . Machines Disabled . | . . . . . Actions | -11 -10 -10 -9 -9 --------- Run | Scr Mat Min Mat Sto Total 3367 | 51 320 704 1252 1040 Wait 148 | . . 78 50 20 Move 2789 | 39 298 583 985 884 Hop . | . . . . . Pick Up 42 | 4 5 6 23 4 Fast Attach 34 | 6 . . 18 10 Attach 14 | . 2 5 6 1 Detach 9 | 2 . . 4 3 Swap 32 | . . . 20 12 Drop 43 | . 1 1 26 15 Fire 252 | . 14 31 120 87 Melee 4 | . . . . 4 Ram . | . . . . . Kick . | . . . . . Crush . | . . . . . Escape Stasis . | . . . . . Rewire . | . . . . . Trap . | . . . . . Miscellaneous . | . . . . . Route ------- -11/Scrapyard -10/Materials (discovered 3 exits: *Mat x2 / [*Min]) -10/Mines (discovered 2 exits: *Mat / [*Exi]) -9/Materials (discovered 4 exits: [*Mat x2] / *Min / *Sto) -9/Storage History --------- Turn | Location | Event 2 | -11/Scrapyard | Met Revision 17 3 | -11/Scrapyard | Discovered new exit (range 16) 91 | -11/Scrapyard | Entered Materials 245 | -10/Materials | Discovered new exit (range 13) 303 | -10/Materials | Build established: Mutant 353 | -10/Materials | Discovered new exit (range 16) 464 | -10/Materials | Discovered new exit (range 14) 618 | -10/Materials | Entered Mines 626 | -10/Mines | Learned location of Zion (-7) 734 | -10/Mines | Deemed a non-threat by the Exiles lab entrance 734 | -10/Mines | Discovered new exit (range 5) 829 | -10/Mines | Assembled infested the area 834 | -10/Mines | Assisted by a Guerilla fighting off Assembled 945 | -10/Mines | Core integrity fell below 50% 953 | -10/Mines | Core integrity fell below 20% 983 | -10/Mines | Lost 5 parts (1p2n2w) 1114 | -10/Mines | Assisted by bots powering up and referring to "LRC-V3" 1307 | -10/Mines | Found a damaged Exp. Sensor Array with a note attached 1308 | -10/Mines | Found Prototype Device 1313 | -10/Mines | Learned Materials garrison access intel 1363 | -10/Mines | Discovered new exit (range 8) 1368 | -10/Mines | Entered Materials 1368 | -9/Materials | Evolved 2 slots: Propulsion x1, Utility x1 1386 | -9/Materials | Identified Exp. Sensor Array 1712 | -9/Materials | Identified exit to Mines 1712 | -9/Materials | Identified exit to Storage 1953 | -9/Materials | Discovered new exit (range 16) 2034 | -9/Materials | Lost 4 parts (3n1u) 2445 | -9/Materials | Build established: Scavenger-Mutant 2545 | -9/Materials | Core integrity fell below 50% 2568 | -9/Materials | First assault squad dispatched 2760 | -9/Materials | Discovered new exit (range 4) 3035 | -9/Materials | Entered Storage 3334 | -9/Storage | Core integrity fell below 20% 4080 | -9/Storage | Build established: Mutant 4230 | -9/Storage | Garrison activated, responded to threat 4667 | -9/Storage | Destroyed by Y-45 Defender with Heavy Assault Rifle Last Messages --------------- 04473_ A-02 Transporter destroyed. 04477_ K-01 Serf collects debris. 04484_ G-34 Mercenary destroyed. 04485_ System corrupted: Matter fused (-10). 04486_ K-01 Serf collects debris. 04492_ Acquired 60 matter. 04494_ Acquired 45 matter. 04496_ K-01 Serf collects debris. 04515_ R-06 Scavenger collects Ion Engine. 04518_ R-06 Scavenger collects Lrg. Matter Pod. 04520_ R-06 Scavenger collects Heat Sink. 04520_ R-06 Scavenger collects Hpw. Tractor Beam. 04544_ Y-45 Defender destroyed. 04553_ Acquired 55 matter. 04585_ System corrupted: Component data lost. 04603_ K-01 Serf cleans the Transfer Shaft. 04615_ K-01 Serf cleans the Terminal. 04631_ Connecting with Door Terminal... 04649_ K-01 Serf cleans the Terminal. 04664_ Com. Wheel destroyed. Map ----- +----------------------------------------------------+ | ?????????????????????????########### | | ?????????????????????????# + | | ?????????????????????????# %# | | ?????????????????????????# # | | ?????????????????????????# + | | ?????????????????????????# """ """ # | | ?????????????????????????# """ """ # | | ?????????????????????????? """ """ # | | ?????????????????????????? # | | ???????????????????????????######### | | ??????????????????????????????????## | | ????????????????????????????????#### | | ???????????????????????????###### # | | ???????????????????????????# # | | ???????????????????????????# # # | | ????#????????##????????????# #### | | ????# ????? #????????????# + | | ???## ???? #????????????# #+## | | ???# """ #????????????# # | | ????# """ +????????????# | | ????# """ #????????????# # | | ??????" " """ #????????????# # ] | | ????????" """ #????????????###### | | ?????????? #?? ##????????????# | | ############Y## #????????????# | | # # @ #????????????#### | | # """ # T +??????????????# | | # """ + ##### #??????????????# | | # """ # #????# ###??????????????# | | # # #????? #????????????????# | | # # #????#?#????????????????# | | # # #????#/#####???????????## | | # # #????# ??????????# | | ####+### #????# ??????????## | | ???# #?# #????# [ ############ | | ???# #?# T#???# # | | ???# #?# ##???# + ! | | ???# #?""""????# # ! | | ???# #?????????# !! # ########## | | ???# #?????????# ! ?# # # | | ???# #?????????# ! ?# + # " | | ???# #?????????########?# # # | | ???# ############## ### # # " | | ???# #? # " | | ???################ #####? # "! | | ??????????????????#####?????? # "" | | ????????????????????????????? # | | ?????????????????????????????? ##### | | ??????????????????????????????##???? | | ???????????????????????????????????? | +----------------------------------------------------+ Best States ------------- Heat Dissipation 42 Energy Generation 18 Energy Capacity 310 Matter Stores 300 Matter Capacity 300 Sight Range 16 Terrain Scan Density 10 Additional Mass Support 12 Armor Coverage 225 Evasion (%) 55 Recoil Reduction 2 Item Schematics ----------------- Exp. Sensor Array | -9/Materials | Scanalyzed Imp. Sensor Array | -9/Materials | Scanalyzed Imp. Flight Unit | -9/Materials | Scanalyzed Hacking Suite | -9/Materials | Scanalyzed Robot Schematics ------------------ None Fabricated ------------ Nothing Alien Tech Used ----------------- None Achievements -------------- None Challenges ------------ None Game ------ Seed ImpulsePotentialMachine Manual? 0 Play Time 00:39:41 Cumulative 269.8 hours Start 2022.03.18 @ 21:23:36 End 2022.03.18 @ 22:03:52 Sessions 1 Manual Loads 0 Difficulty Rogue Special Mode None Game No. 422 Rogue 422 Adventurer 0 Explorer 0 Win Type - Total 5 Types 3/0/1/1/0/0/0/0/0 Lore% 76 Gallery% 76 Achievement% 62 Wizard Run 0 Options --------- ASCII 0 Keyboard 1 Movement Numpad Keybinds 0 Fullscreen 2 Font 24/Smallcaps Map View 76x50 Tactical HUD 1 Map Filters NONE Filters NONE Steam 1 RUN: 633263f2-65c0-4469-8ea3-2c4084a65c7c